[Event "Azerbaijan-ch 1st League 2025"]
[Site "Baku"]
[Date "2025.01.10"]
[Round "5.5"]
[White "Abdulkarimli, Eljan"]
[Black "Rustamov, Rustam"]
[Result "1/2-1/2"]
[Annotator "TA"]
[ECO "E24"]
[WhiteElo "2163"]
[BlackElo "2305"]
[PlyCount "225"]
[EventDate "2025.01.05"]
[EventType "swiss"]
[EventCountry "AZE"]
[SourceTitle "playchess.com"]
[Source "ChessBase"]
[SourceQuality "1"]
[TimeControl "40/5400+30:1800+30"]

{[%evp 80,225,94,76,99,109,117,93,123,92,94,78,98,97,114,58,122,91,128,143,150,147,136,0,64,0,143,0,0,-140,-159,-138,-145,-147,-146,-139,-130,-149,-146,-146,-146,-152,-61,-102,-75,-83,-81,-141,-76,-77,-60,-56,-8,-28,-39,-153,-64,-64,-50,-60,-66,-57,-68,-80,-73,-68,-59,-493,-451,-438,-431,-520,-512,-443,-267,-282,-267,-267,-267,-267,-267,-267,-267,-267,0,0,0,0,0,0,0,0,0,0,0,0,0,0,0,0,0,0,0,0,0,0,0,0,0,0,0,0,0,0,0,0,0,0,0,0,0,0,0,0,0,0,0,0,0,-39,-12,-66,-14,-66,0,-66,-66,-66,0,-66,0,0,0,0,0,0,0,0]} 1. d4 {[%emt 0:02:37]} Nf6 {[%emt 0:00:17]} 2. c4 {[%emt 0:00:31]} e6 {[%emt 0:01:55]} 3. Nc3 {[%emt 0:00:48]} Bb4 {[%emt 0:00:46]} 4. a3 {[%emt 0:00:44]} Bxc3+ {[%emt 0:01:07]} 5. bxc3 {[%emt 0:00:08]} b6 {[%emt 0:00:32]} 6. f3 {[%emt 0:01:16]} d5 {[%emt 0:01:32]} 7. Bg5 {[%emt 0:01:58]} h6 {[%emt 0:02:34]} 8. Bh4 {[%emt 0:00:59]} Bb7 {[%emt 0:03:57]} 9. e3 {[%emt 0:02:25]} O-O {[%emt 0:01:44]} 10. Bd3 {[%emt 0:01:45]} Nbd7 {[%emt 0:03:31]} 11. Ne2 {[%emt 0:05:16]} c5 {[%emt 0:01:49]} 12. cxd5 {[%emt 0:05:10]} exd5 {[%emt 0:00:24]} 13. O-O {[%emt 0:00:49]} Qe7 {[%emt 0:12:32]} 14. Bf2 {[%emt 0:04:06]} a5 {[%emt 0:01:14]} 15. Re1 {[%emt 0:03:09]} Ba6 {[%emt 0:01:35]} 16. Bc2 {[%emt 0:05:00]} Bxe2 {[%emt 0:00:50]} 17. Qxe2 {[%emt 0:02:46]} Rac8 {[%emt 0:09:57]} 18. Qd3 {[%emt 0:06:31]} Rfd8 {[%emt 0:04:19]} 19. Rab1 {[%emt 0:07:02]} Qe6 {[%emt 0:07:19]} 20. Ba4 {[%emt 0:02:24]} Qd6 {[%emt 0:10:30]} 21. Bg3 {[%emt 0:00:57]} Qe7 {[%emt 0:01:40]} 22. Bf2 {[%emt 0:04:01]} Qd6 {[%emt 0:01:24]} 23. Bg3 {[%emt 0:01:02]} Qe7 {[%emt 0:00:11]} 24. h3 {[%emt 0:06:19]} Kh8 {[%emt 0:03:52]} 25. Bf4 {[%emt 0:02:28]} Kg8 {[%emt 0:02:30]} 26. Bg3 {[%emt 0:01:37]} Nh5 {[%emt 0:02:09]} 27. Bh2 {[%emt 0:02:01]} Nhf6 {[%emt 0:00:24]} 28. Bf4 {[%emt 0:01:21]} Kh8 {[%emt 0:00:49]} 29. g4 {[%emt 0:01:28]} Qe6 {[%emt 0:03:28]} 30. Kf2 {[%emt 0:02:31]} Kg8 {[%emt 0:01:41]} 31. Rb2 {[%emt 0:04:40]} Qe7 {[%emt 0:00:51]} 32. Rbb1 {[%emt 0:00:37]} Nh7 {[%emt 0:03:57]} 33. Rh1 {[%emt 0:06:38]} h5 {[%emt 0:02:09]} 34. Rhg1 {[%emt 0:07:42]} h4 {[%emt 0:02:16]} 35. Rge1 {[%emt 0:00:59]} Ng5 {[%emt 0:01:16]} 36. Kg2 {[%emt 0:01:16]} Ne6 {[%emt 0:00:22]} 37. Bh2 {[%emt 0:01:07]} Ng5 {[%emt 0:02:29]} 38. Bf4 {[%emt 0:01:24]} Ne6 {[%emt 0:00:32]} 39. Bh2 {[%emt 0:00:58]} Ng5 {[%emt 0:00:07]} 40. Re2 {[%emt 0:00:00]} Qf6 {[%emt 0:00:00]} 41. Rf2 {[%emt 0:06:46]} Qe6 {[%emt 0:09:06]} 42. Bf4 {[%emt 0:01:34]} Nh7 {[%emt 0:01:27]} 43. Rfb2 {[%emt 0:01:58]} Nhf8 {[%emt 0:01:12]} 44. Re1 {[%emt 0:04:32]} Qe7 {[%emt 0:01:40]} 45. Bb5 {[%emt 0:02:53]} Ng6 {[%emt 0:04:44]} 46. Bh2 {[%emt 0:01:14]} Ndf8 {[%emt 0:00:35]} 47. Rf1 {[%emt 0:03:09]} (47. Ba6 $16) 47... Nh7 {[%emt 0:03:52]} (47... Ne6 $14) 48. Ba4 $1 $16 {[%emt 0:03:50]} cxd4 {[%emt 0:02:13]} (48... c4 $6 49. Qd1 $14) 49. cxd4 {[%emt 0:00:40]} Rc4 {[%emt 0:00:42]} 50. Bb5 {[%emt 0:01:00]} Rcc8 {[%emt 0:00:14]} 51. Ba4 {[%emt 0:01:29]} ({White should play} 51. Rbb1 $16) 51... Rc4 $14 {[%emt 0:00:10]} 52. Bb5 {[%emt 0:00:22]} (52. Bb3 $1 $14) 52... Rcc8 $16 {[%emt 0:00:39]} 53. e4 {[%emt 0:05:53]} (53. Rbb1 $16) 53... Qf6 $11 {[%emt 0:01:15]} 54. e5 {[%emt 0:02:57]} (54. Ba6 $1 $11 {keeps the balance.} Ra8 55. Bb7) 54... Nf4+ $17 {[%emt 0:00:37]} 55. Bxf4 {[%emt 0:00:15]} Qxf4 {[%emt 0:00:04]} 56. Qd2 {[%emt 0:01:40]} Qg3+ {[%emt 0:00:24]} 57. Kh1 {[%emt 0:00:03]} Qxh3+ {[%emt 0:00:56]} 58. Qh2 {[%emt 0:00:13]} Qxh2+ {[%emt 0:01:03]} 59. Rxh2 {[%emt 0:00:16]} g5 {[%emt 0:00:12]} 60. f4 {[%emt 0:00:38]} gxf4 {[%emt 0:00:05]} (60... Rc3 $17 61. a4 gxf4 62. Rxf4 Ng5) 61. Rxh4 {[%emt 0:01:00]} Nf8 {[%emt 0:00:36]} 62. Bd3 {[%emt 0:01:31]} (62. Rxf4 $2 Ng6 63. g5 Rc3 $19) 62... Rc3 {[%emt 0:00:43]} 63. Rh3 {[%emt 0:01:32] [#]} (63. Bf5 $142) 63... Rdc8 {[%emt 0:01:47]} (63... Rxa3 64. Bh7+ (64. Rxf4 Ra1+ 65. Kg2 Ra2+ 66. Kg3 Rc8 $17) 64... Nxh7 65. Rxa3 $16) (63... Kg7 $1 64. Rxf4 Rxa3) 64. Rxf4 $17 {[%emt 0:01:01]} Ne6 {[%emt 0:01:45]} (64... Rxa3 $6 65. Bh7+ Nxh7 66. Rxa3 $14) 65. Rf6 {[%emt 0:00:09]} Nxd4 {[%emt 0:01:46]} (65... Rxa3 $2 66. Bh7+ Kg7 67. Rxa3 $18) (65... b5 $15 66. Kh2 R8c7 (66... Rxa3 $2 67. Bh7+ Kg7 68. Rxa3 $18) (66... Nxd4 67. g5 $15) 67. Bxb5 Rc2+ (67... Nxd4 68. Bd3 $15) (67... Rxh3+ 68. Kxh3 Nxd4 69. a4 $15) 68. Kg1 Nxd4) 66. Rxb6 {[%emt 0:00:28]} Ne6 {[%emt 0:00:22]} 67. Rb5 {[%emt 0:01:40] [#]} (67. Bh7+ $15 Kg7 68. Rxc3 Rxc3 69. Bf5) 67... Nf4 {[%emt 0:00:38]} (67... Rxa3 68. Bh7+ (68. Rxd5 $2 Ra1+ 69. Kh2 Nf4 $19) 68... Kh8 69. Rxa3 $16) (67... d4 $1 $17 68. Rf3 Kg7 (68... Rxa3 69. Bh7+ Kxh7 70. Rxa3 $14) 69. Rxa5 Rh8+ 70. Kg2 Rxd3 71. Rxd3 Nf4+ 72. Kf3 Nxd3) 68. Bh7+ $15 {[%emt 0:00:05]} Kg7 {[%emt 0:00:15]} 69. Rxc3 {[%emt 0:00:19]} Rxc3 {[%emt 0:00:05]} 70. Bf5 {[%emt 0:00:08]} Rxa3 {[%emt 0:00:09]} 71. Rb7 {[%emt 0:00:44]} Re3 {[%emt 0:01:02]} 72. Ra7 {[%emt 0:00:40]} d4 {[%emt 0:00:18]} 73. Rd7 $2 {[%emt 0:00:26][%mdl 8192]} (73. e6 $1 $15) 73... d3 {[%emt 0:01:25]} (73... Rxe5 74. Rxd4 Nd5 75. Bd7 $17) 74. e6 {[%emt 0:00:12]} Nxe6 {[%emt 0:00:22]} 75. Bxe6 {[%emt 0:00:28]} Rxe6 {[%emt 0:00:53]} 76. Rxd3 {[%emt 0:00:02]} Re4 {[%emt 0:00:46]} 77. Rd5 {[%emt 0:00:43]} Ra4 {[%emt 0:00:40]} (77... Rxg4 78. Rxa5 Kf6 79. Ra3 $11) 78. Kh2 {[%emt 0:00:45]} Ra3 {[%emt 0:00:26]} (78... Rxg4 79. Rxa5 f5 80. Rxf5 $11) 79. Kg2 {[%emt 0:00:25]} a4 {[%emt 0:00:36]} 80. Ra5 {[%emt 0:00:24]} Ra1 {[%emt 0:00:46]} 81. Ra6 {[%emt 0:00:35]} f6 $2 {[%emt 0:00:17]} (81... Kg8 $19 {and ...Kh7 would now be decisive} 82. g5 Kf8) 82. Ra7+ {[%emt 0:01:21]} Kg6 {[%emt 0:00:02]} 83. Ra5 {[%emt 0:00:04]} a3 {[%emt 0:00:33]} 84. Kh2 {[%emt 0:00:14]} Kf7 {[%emt 0:00:21]} 85. Ra6 {[%emt 0:00:27]} Ke7 {[%emt 0:00:04]} 86. Kg2 {[%emt 0:00:17]} Ra2+ {[%emt 0:01:03]} 87. Kg3 {[%emt 0:00:12]} Kf7 {[%emt 0:00:08]} 88. Kh3 {[%emt 0:00:13]} Kg6 {[%emt 0:00:26]} 89. Ra5 {[%emt 0:00:17]} Ra1 {[%emt 0:00:12]} 90. Kh2 {[%emt 0:00:42]} Kf7 {[%emt 0:00:05]} 91. Ra6 {[%emt 0:00:08]} Ke7 {[%emt 0:00:03]} 92. Kg2 {[%emt 0:00:17]} Kf7 {[%emt 0:00:20]} 93. Kh2 {[%emt 0:00:07]} Kg6 {[%emt 0:00:13]} 94. Ra5 $1 {[%emt 0:00:50]} Kf7 {[%emt 0:02:13]} 95. Ra6 {[%emt 0:00:56]} a2 {[%emt 0:00:27]} 96. Kg2 {[%emt 0:00:14]} Ke7 {[%emt 0:00:04]} 97. Kh2 {[%emt 0:01:13]} Kd7 {[%emt 0:00:03]} 98. Kg2 {[%emt 0:00:25]} Kc7 {[%emt 0:00:04]} 99. Kh2 {[%emt 0:00:24]} Kb7 {[%emt 0:00:04]} 100. Ra3 {[%emt 0:00:26]} Kb6 {[%emt 0:00:05]} 101. Kg2 {[%emt 0:00:20]} Kb5 {[%emt 0:00:01]} 102. Ra8 {[%emt 0:00:23]} Kb4 {[%emt 0:00:17]} 103. Rb8+ {[%emt 0:00:24]} Kc3 {[%emt 0:00:03]} 104. Rc8+ {[%emt 0:00:20]} Kd4 {[%emt 0:00:07]} 105. Ra8 $1 {[%emt 0:01:02]} Ke4 {[%emt 0:00:07]} 106. Ra4+ {[%emt 0:00:31]} (106. Ra6 $1 $11) 106... Ke5 {[%emt 0:00:03]} 107. Kh2 $1 {[%emt 0:00:39]} Ke6 {[%emt 0:00:01]} 108. Kg2 {[%emt 0:00:15]} Kf7 {[%emt 0:00:02]} (108... Ke7 $15) 109. Ra7+ {[%emt 0:00:21]} (109. Ra6 $1 $11) 109... Kg6 {[%emt 0:20:31]} ({Black should play} 109... Kf8 $1 $15) 110. Ra5 $11 {[%emt 0:00:06]} Kh6 {[%emt 0:00:00]} 111. Rh5+ {[%emt 0:00:40]} Kg7 {[%emt 0:00:00]} 112. Ra5 {[%emt 0:00:04]} Kh7 {[%emt 0:00:00]} 113. Rh5+ {[%emt 0:03:59]} 1/2-1/2

[Event "Azerbaijan-ch 1st League 2025"]
[Site "Baku"]
[Date "2025.01.10"]
[Round "5.6"]
[White "Orujov, Farid"]
[Black "Davudov, Tunar"]
[Result "1-0"]
[Annotator "TA"]
[ECO "C78"]
[WhiteElo "2301"]
[BlackElo "2225"]
[PlyCount "139"]
[EventDate "2025.01.05"]
[EventType "swiss"]
[EventCountry "AZE"]
[SourceTitle "playchess.com"]
[Source "ChessBase"]
[SourceQuality "1"]
[TimeControl "40/5400+30:1800+30"]

{[%evp 21,139,-2,-6,0,0,0,0,0,0,0,0,0,87,76,108,108,162,155,170,163,162,167,218,81,175,173,260,67,45,32,116,139,132,137,133,106,302,291,307,231,243,262,252,262,249,293,298,282,258,272,331,314,323,312,316,301,322,232,346,387,425,411,394,401,575,571,598,577,956,962,562,916,892,912,1249,1157,1518,836,2579,2407,2304,2422,2395,1837,12850,29943,5093,5534,2888,1921,29970,29972,29970,29973,29973,29974,29974,29974,29978,29979,29979,29980,29978,29978,29982,29983,29984,29985,29985,29986,29986,29983,29989,29990,29991,29990,29990,29991,29991,29991]} 1. e4 {[%emt 0:00:01]} e5 {[%emt 0:00:20]} 2. Nf3 {[%emt 0:00:05]} Nc6 {[%emt 0:00:24]} 3. Bb5 {[%emt 0:00:05]} a6 {[%emt 0:00:17]} 4. Ba4 {[%emt 0:00:01]} Nf6 {[%emt 0:00:29]} 5. O-O {[%emt 0:00:12]} b5 {[%emt 0:00:26]} 6. Bb3 {[%emt 0:00:13]} Bb7 {[%emt 0:00:27]} 7. Re1 {[%emt 0:02:54]} Bc5 {[%emt 0:02:10]} 8. c3 {[%emt 0:00:54]} d6 {[%emt 0:00:54]} 9. d4 {[%emt 0:00:01]} Bb6 {[%emt 0:00:08]} 10. a4 {[%emt 0:00:27]} h6 {[%emt 0:00:39]} 11. h3 {[%emt 0:02:07]} O-O {[%emt 0:00:52]} 12. Be3 {[%emt 0:00:22]} exd4 {[%emt 0:06:24]} (12... Nxe4 13. d5 Bxe3 14. Rxe3 $16) 13. cxd4 {[%emt 0:01:40]} Na5 {[%emt 0:05:55]} 14. d5 {[%emt 0:00:56]} Bxe3 {[%emt 0:09:21]} 15. Rxe3 {[%emt 0:00:01]} Re8 {[%emt 0:03:13]} 16. Nbd2 {[%emt 0:00:49]} Nd7 {[%emt 0:01:11]} (16... c6 $11) 17. Ba2 {[%emt 0:10:07]} b4 {[%emt 0:06:25]} 18. Rc1 $1 {[%emt 0:03:11]} Nc5 {[%emt 0:36:19]} (18... Rc8 $16 {keeps fighting.}) 19. e5 $1 $18 {[%emt 0:01:31]} c6 {[%emt 0:09:13]} 20. dxc6 {[%emt 0:11:42]} Bxc6 {[%emt 0:01:50]} 21. Nd4 {[%emt 0:01:10]} Bxa4 {[%emt 0:01:17]} (21... b3 $142) 22. Qg4 {[%emt 0:05:07]} (22. Qh5 $18 {has better winning chances.} b3 23. Rg3 (23. N4xb3 Naxb3 24. Nxb3 Bxb3 $17) 23... Rxe5 (23... bxa2 24. Rxg7+ Kxg7 25. Nf5+ Kg8 26. Nxh6+ Kh8 27. Nf5+ Kg8 28. Qg4+) 24. Qxh6) 22... b3 {[%emt 0:02:35]} (22... Rxe5 $2 23. Rxe5 (23. Nf5 Qf6 $18) 23... b3 (23... dxe5 $2 24. Nf5 $18) 24. Nf5 $18) (22... dxe5 $2 23. Nf5 (23. Rxc5 exd4 24. Rg3 g5 $16) 23... Qg5 24. Qxg5 (24. Rxc5 Qxg4 25. hxg4 Bb5 $18) (24. Qxb4 Nab3 $18) 24... hxg5 25. Rxc5 $18) (22... Bd7 $16 23. Qf3 Ne6) 23. Bb1 $1 {[%emt 0:04:29][%cal Oc1c5]} (23. N4xb3 Naxb3 (23... Rxe5 $2 24. Rxe5 dxe5 25. Rxc5 $18) 24. Nxb3 Bxb3 $11 (24... Rxe5 $2 25. Rxe5 Bd7 26. Qf3 $18)) (23. Nf5 Qg5 24. Qxg5 hxg5 $15) 23... Qg5 {[%emt 0:06:45]} (23... Bd7 $142 24. Bf5 Ne6 (24... dxe5 25. Rxc5 exd4 26. Rg3 $16)) 24. Qxg5 $2 {[%emt 0:03:55]} (24. exd6 Qxg4 25. hxg4 Ncb7 $11) ({White has to play} 24. Qf3 $1 $18) 24... hxg5 $14 {[%emt 0:00:02]} 25. exd6 {[%emt 0:00:01]} Rxe3 {[%emt 0:00:08]} (25... Ncb7 $14) 26. fxe3 $16 {[%emt 0:00:03]} Ncb7 {[%emt 0:01:31] [#]} 27. Ne4 $1 $36 {[%emt 0:04:27][%mdl 2048] White is really pushing. White is more active.} Rd8 {[%emt 0:00:37]} 28. Bd3 {[%emt 0:03:32]} g6 $2 {[%emt 0:03:30]} (28... Be8 $16) 29. Bxa6 $18 {[%emt 0:04:19]} ({Weaker is} 29. Nxg5 Nxd6 30. Bxa6 (30. Ra1 Nab7 $18) 30... Rb8 $14) (29. Ra1 Bc6 $16) 29... Nxd6 {[%emt 0:01:04]} 30. Nxd6 {[%emt 0:00:00]} (30. Nxg5 Rb8 31. Rc7 Rb4 $14) 30... Rxd6 {[%emt 0:00:01] [#]} 31. Ra1 $1 {[%emt 0:00:01]} Rxa6 {[%emt 0:00:16]} 32. Rxa4 {[%emt 0:00:01][%cal Od4b3][%mdl 4096] Endgame KRN-KRN} Ra7 {[%emt 0:00:18]} 33. Nxb3 {[%emt 0:00:32]} Nc6 {[%emt 0:00:03]} 34. Rxa7 {[%emt 0:00:04]} Nxa7 {[%emt 0:00:03] KN-KN. White is a pawn up.} 35. Nd4 {[%emt 0:00:04] Dodges Nc6} Kf8 {[%emt 0:00:33]} 36. Kf2 {[%emt 0:00:21]} Ke7 {[%emt 0:00:14]} 37. Ke2 {[%emt 0:03:49]} Nc8 {[%emt 0:00:46]} 38. b4 {[%emt 0:00:52]} Nb6 {[%emt 0:00:20]} 39. Kd3 {[%emt 0:02:30]} Kd6 {[%emt 0:00:47]} (39... Nd5 $142 40. Nc2 g4) 40. e4 {[%emt 0:00:00]} Ke5 {[%emt 0:00:00]} 41. g3 {[%emt 0:03:03]} f6 {[%emt 0:09:42][%cal Bf7f6,Bf6f5,Bf5f4][%mdl 32]} 42. Nf3+ {[%emt 0:00:28]} Ke6 {[%emt 0:00:52]} (42... Kd6 $142 43. g4 Na8 44. e5+ fxe5) 43. Kd4 {[%emt 0:01:32]} Nd7 {[%emt 0:00:49]} 44. b5 {[%emt 0:02:59][%cal Bb4b5,Bb5b6][%mdl 32]} Kd6 {[%emt 0:02:03]} 45. Nd2 {[%emt 0:00:19]} f5 {[%emt 0:02:24]} 46. Nc4+ {[%emt 0:00:22]} (46. g4 $142) 46... Ke6 {[%emt 0:00:07]} 47. b6 {[%emt 0:06:50]} f4 {[%emt 0:09:14]} 48. g4 {[%emt 0:00:38]} Nb8 {[%emt 0:00:43]} 49. Nd2 {[%emt 0:08:19] aiming for Nf3.} Kd6 {[%emt 0:06:52]} 50. e5+ {[%emt 0:01:20][%cal Be4e5,Be5e6][%mdl 32]} Kc6 {[%emt 0:00:21]} 51. Nf3 {[%emt 0:03:18]} Kxb6 {[%emt 0:01:45]} 52. Kd5 {[%emt 0:01:50]} Kc7 {[%emt 0:02:23]} 53. Ke6 {[%emt 0:00:02]} Nc6 {[%emt 0:01:09]} 54. Kf6 {[%emt 0:01:26]} Kd7 {[%emt 0:00:17]} 55. e6+ {[%emt 0:01:29]} Ke8 {[%emt 0:00:24]} 56. Kxg6 {[%emt 0:01:51]} Ke7 {[%emt 0:00:19]} 57. Kxg5 {[%emt 0:00:14]} Kxe6 {[%emt 0:00:06]} 58. Kxf4 {[%emt 0:00:03]} (58. h4 Ne7 59. h5 (59. Kxf4 Kf6 $18) 59... Kf7 60. Kxf4 Nd5+ 61. Ke4 Nf6+ 62. Kf5 Nd5 63. Ne5+ Kg7 $18) 58... Ne7 {[%emt 0:00:32]} 59. h4 {[%emt 0:00:20][%cal Bh3h4,Bh4h5][%mdl 32]} Kf6 {[%emt 0:00:37]} 60. g5+ {[%emt 0:00:17]} Kg6 {[%emt 0:00:07]} 61. Kg4 {[%emt 0:00:07]} Nd5 {[%emt 0:00:11]} 62. h5+ {[%emt 0:00:35]} Kh7 {[%emt 0:00:21]} 63. Nd4 {[%emt 0:42:02]} Ne3+ {[%emt 0:01:10]} 64. Kf3 {[%emt 0:00:00]} Nd5 {[%emt 0:00:47]} 65. Nf5 {[%emt 0:00:00]} Kh8 {[%emt 0:01:24]} 66. Ke4 {[%emt 0:00:00]} Nc7 {[%emt 0:00:19]} 67. Ke5 {[%emt 0:00:00]} Na6 {[%emt 0:00:19]} 68. g6 {[%emt 0:00:00]} Nc5 {[%emt 0:00:07]} 69. h6 {[%emt 0:00:00]} Kg8 {[%emt 0:01:49]} 70. Ne7+ {[%emt 0:00:00]} 1-0

[Event "Azerbaijan-ch 1st League 2025"]
[Site "Baku"]
[Date "2025.01.10"]
[Round "5.7"]
[White "Ibrahimli, Suat"]
[Black "Gurbanov, Ismayil"]
[Result "1-0"]
[Annotator "TA"]
[ECO "E05"]
[WhiteElo "1949"]
[BlackElo "2248"]
[PlyCount "89"]
[EventDate "2025.01.05"]
[EventType "swiss"]
[EventCountry "AZE"]
[SourceTitle "playchess.com"]
[Source "ChessBase"]
[SourceQuality "1"]
[TimeControl "40/5400+30:1800+30"]

{[%evp 13,89,27,23,22,25,20,25,29,5,-16,8,-1,-2,-28,-22,-69,-77,-88,-32,-28,-60,-133,-110,-110,-134,-157,-89,-113,-114,-119,-107,-114,-118,-127,-78,-68,-82,-70,-26,-83,-69,-73,-68,-75,-75,-75,-75,-79,-79,-81,-66,-58,-22,-88,0,0,0,0,0,0,0,0,380,368,668,671,29984,29985,29985,29986,29986,29987,29987,29988,29988,29989,29989,29990]} 1. d4 {[%emt 0:00:02]} Nf6 {[%emt 0:08:41]} 2. c4 {[%emt 0:00:04]} e6 {[%emt 0:00:02]} 3. g3 {[%emt 0:00:03]} d5 {[%emt 0:00:04]} 4. Nf3 {[%emt 0:00:03]} Be7 {[%emt 0:00:03]} 5. Bg2 {[%emt 0:00:06]} O-O {[%emt 0:00:04]} 6. O-O {[%emt 0:00:03]} dxc4 {[%emt 0:00:02]} 7. Qc2 {[%emt 0:00:06]} b5 {[%emt 0:00:05]} 8. a4 {[%emt 0:00:03]} b4 {[%emt 0:00:17]} 9. Nfd2 {[%emt 0:00:06]} c6 {[%emt 0:00:15]} 10. Nxc4 {[%emt 0:01:07]} (10. Qxc4 Ba6 11. Qa2 Qxd4 $17 (11... Bxe2 12. Re1 $17)) 10... Qxd4 {[%emt 0:00:13]} 11. Be3 {[%emt 0:03:17]} Qg4 {[%emt 0:03:53]} 12. h3 {[%emt 0:19:13]} (12. Ne5 {is more complex.} Qh5 13. f4 Ng4 14. Nxg4 Qxg4 15. Bf3) 12... Qg6 {[%emt 0:03:39]} 13. Qc1 {[%emt 0:07:44]} Nd5 {[%emt 0:07:13]} 14. Bd4 {[%emt 0:09:02]} (14. Nbd2 $1 $11) 14... Nd7 $15 {[%emt 0:13:19]} 15. e4 {[%emt 0:15:54]} N5b6 {[%emt 0:00:17]} (15... Ba6 $1 $17 {Strongly threatening ...N5b6.} 16. exd5 cxd5) 16. Nxb6 {[%emt 0:02:12]} axb6 {[%emt 0:15:49]} 17. Rd1 {[%emt 0:07:51]} (17. Qxc6 $15 Rb8 18. Nd2) 17... e5 $17 {[%emt 0:01:09]} 18. Be3 {[%emt 0:00:29]} Nc5 {[%emt 0:00:50]} 19. Nd2 {[%emt 0:00:34][%cal Oa4a5] Against Nb3} Nd3 {[%emt 0:12:21]} (19... Nxa4 20. Qc2 b3 (20... b5 21. b3 $16) 21. Nxb3 $14) (19... Rxa4 $142 20. Qc2 Rxa1 21. Rxa1 Qd6) 20. Qc2 {[%emt 0:00:23] [#]} Nf4 $1 {[%emt 0:00:03][%mdl 512]} 21. Nc4 {[%emt 0:05:04]} (21. gxf4 $2 Bxh3 22. Kf1 Qxg2+ 23. Ke1 exf4 24. Bxb6 f3 $19) (21. Bxb6 Nxh3+) 21... Nxg2 {[%emt 0:01:48]} (21... Bxh3 $2 22. Nxe5 (22. gxf4 $2 Qxg2#) 22... Qe6 23. gxf4 $18 (23. Bxf4 Bxg2 24. Kxg2 g5 $18)) 22. Kxg2 {[%emt 0:00:07]} c5 {[%emt 0:00:17][%cal Ob4b3]} 23. f3 {[%emt 0:00:37][%cal Og3g4]} Qe6 {[%emt 0:01:09]} ({Better is} 23... h5 24. g4 Rd8 25. Nxe5 Qf6 26. Rxd8+ Bxd8) 24. g4 {[%emt 0:00:13]} Ba6 {[%emt 0:00:26]} 25. Rd5 {[%emt 0:00:22]} Rfd8 {[%emt 0:00:31]} (25... Bxc4 {simplifies} 26. Qxc4 Rfd8 27. Rxd8+ Bxd8 28. Qxe6 fxe6 29. b3 Kf7) 26. b3 {[%emt 0:02:07]} (26. Rxe5 $11 {keeps the balance.} Qxc4 27. Qxc4 Bxc4 28. Rxe7) 26... f6 {[%emt 0:00:41]} 27. Rad1 {[%emt 0:02:52]} Bb7 {[%emt 0:00:19]} 28. Bf2 {[%emt 0:02:53]} Rab8 {[%emt 0:01:33]} ({Don't play} 28... Bxd5 $6 29. exd5 Qf7 (29... Rxd5 30. Rxd5 Qxd5 31. Nxb6 $16) 30. d6 Bxd6 31. Nxd6 $14 (31. Rxd6 Rxd6 32. Nxd6 Qe6 $16)) 29. Rxd8+ {[%emt 0:00:35]} Rxd8 {[%emt 0:00:02]} 30. Rxd8+ {[%emt 0:00:25]} Bxd8 {[%emt 0:00:02]} 31. Qd3 {[%emt 0:00:09]} Bc7 {[%emt 0:00:17]} 32. Ne3 {[%emt 0:00:08]} Kf7 {[%emt 0:02:40]} 33. h4 {[%emt 0:02:53]} (33. Nd5 $11 Bxd5 34. exd5) 33... g6 {[%emt 0:00:58]} (33... Bc8 $17) 34. Nd5 $1 $11 {[%emt 0:05:10]} Qd7 {[%emt 0:04:17]} 35. Qc4 {[%emt 0:05:10][%csl LRb4,LRb6,LRc7]} Bxd5 {[%emt 0:03:25]} 36. exd5 {[%emt 0:00:08][%mdl 4096] Endgame aiming for d6+. KQB-KQB. Black is a pawn up.} Ke7 {[%emt 0:00:01]} 37. a5 {[%emt 0:02:40]} Kd6 $2 {[%emt 0:00:38][%mdl 8192] [#]} (37... bxa5 $11 {and Black has nothing to worry.} 38. Bxc5+ Bd6) 38. Qa6 $1 $18 {[%emt 0:03:45]} Qd8 $2 {[%emt 0:07:06]} (38... Qe8 39. axb6 Bb8) 39. Qb7 {[%emt 0:00:16]} bxa5 {[%emt 0:00:46]} 40. Qc6+ {[%emt 0:00:00]} Ke7 {[%emt 0:00:00]} 41. Qe6+ {[%emt 0:00:30]} Kf8 {[%emt 0:00:06]} 42. Bxc5+ {[%emt 0:00:05]} Kg7 {[%emt 0:00:32]} 43. Be7 {[%emt 0:00:19]} Qe8 {[%emt 0:01:10]} 44. Bxf6+ {[%emt 0:00:05]} Kf8 {[%emt 0:00:01] [#]} 45. Bg7+ $1 {[%emt 0:00:07][%mdl 512]} 1-0